fUST/lending_fUST_20240429
["ID","MTS","AMOUNT","RATE_DAILY","PERIOD"]
[324840111,1714369833815,-500.0,0.00013698,2]
[324840112,1714369833824,-500.0,0.00013698,2]
[324840113,1714369833834,-651.28,0.00013698,2]
[324840114,1714369833843,-283.62851853,0.00013698,2]
[324840115,1714369833852,-500.0,0.00013698,2]
[324840116,1714369833861,-500.0,0.00013698,2]
[324840117,1714369833870,-500.0,0.00013698,2]
[324840118,1714369833879,-500.0,0.00013698,2]
[324840119,1714369833888,-500.0,0.00013698,2]
[324840120,1714369833898,-733.2,0.00013698,2]
[324840121,1714369833907,-755.21,0.00013698,2]
[324840122,1714369833916,-500.0,0.00013698,2]
[324840123,1714369833925,-609.32,0.00013698,2]
[324840124,1714369833934,-504.54,0.00013698,2]
[324840125,1714369833943,-500.0,0.00013698,2]
[324840126,1714369833952,-500.0,0.00013698,2]
[324840127,1714369833961,-559.26598269,0.00013698,2]
[324840128,1714369833971,-580.59,0.00013698,2]
[324840129,1714369833983,-624.28719997,0.00013698,2]
[324840130,1714369833993,-1268.35,0.00013698,2]
[324840131,1714369834003,-1185.72,0.00013698,2]
[324840132,1714369834013,-500.0,0.00013698,2]
[324840133,1714369834022,-973.7,0.00013698,2]
[324840134,1714369834031,-500.0,0.00013698,2]
[324840135,1714369834041,-836.14,0.00013698,2]
[324840136,1714369834051,-500.0,0.00013698,2]
[324840137,1714369834060,-529.61962128,0.00013698,2]
[324840138,1714369834069,-1378.15,0.00013698,2]
[324840139,1714369834078,-500.0,0.00013698,2]
[324840140,1714369834087,-669.37,0.00013698,2]
[324840141,1714369834097,-789.93,0.00013698,2]
[324840142,1714369834106,-617.25,0.00013698,2]
[324840143,1714369834115,-603.91912185,0.00013698,2]
[324840144,1714369834125,-500.0,0.00013698,2]
[324840145,1714369834134,-500.0,0.00013698,2]
[324840146,1714369834143,-500.0,0.00013698,2]
[324840147,1714369834154,-799.84,0.00013698,2]
[324840148,1714369834164,-500.0,0.00013698,2]
[324840149,1714369834173,-642.74,0.00013698,2]
[324840150,1714369834185,-500.0,0.00013698,2]
[324840151,1714369834195,-500.0,0.00013698,2]
[324840152,1714369834204,-500.0,0.00013698,2]
[324840153,1714369834213,-500.0,0.00013698,2]
[324840154,1714369834223,-931.53,0.00013698,2]
[324840155,1714369834237,-794.42,0.00013698,2]
[324840156,1714369834246,-500.0,0.00013698,2]
[324840157,1714369834256,-500.0,0.00013698,2]
[324840158,1714369834266,-500.0,0.00013698,2]
[324840159,1714369834275,-482.51402582,0.00013698,2]
[324840160,1714369834284,-500.0,0.00013698,2]
[324840161,1714369834293,-500.0,0.00013698,2]
[324840162,1714369834302,-514.92,0.00013698,2]
[324840163,1714369834311,-506.53,0.00013698,2]
[324840164,1714369834320,-509.7,0.00013698,2]
[324840165,1714369834330,-842.71,0.00013698,2]
[324840166,1714369834339,-581.42,0.00013698,2]
[324840167,1714369834349,-500.0,0.00013698,2]
[324840168,1714369834358,-500.0,0.00013698,2]
[324840169,1714369834367,-500.0,0.00013698,2]
[324840170,1714369834376,-500.0,0.00013698,2]
[324840171,1714369834385,-1312.7,0.00013698,2]
[324840172,1714369834395,-1789.21,0.00013698,2]
[324840173,1714369834404,-1426.38,0.00013698,2]
[324840174,1714369834413,-1669.57,0.00013698,2]
[324840175,1714369834422,-500.0,0.00013698,2]
[324840176,1714369834431,-500.0,0.00013698,2]
[324840177,1714369834440,-500.0,0.00013698,2]
[324840178,1714369834449,-500.0,0.00013698,2]
[324840179,1714369834458,-500.0,0.00013698,2]
[324840180,1714369834467,-500.0,0.00013698,2]
[324840181,1714369834477,-500.0,0.00013698,2]
[324840182,1714369834486,-500.0,0.00013698,2]
[324840183,1714369834495,-1180.21,0.00013698,2]
[324840184,1714369834504,-500.0,0.00013698,2]
[324840185,1714369834513,-1601.15,0.00013698,2]
[324840186,1714369834523,-500.0,0.00013698,2]
[324840187,1714369834531,-500.0,0.00013698,2]
[324840188,1714369834540,-882.91,0.00013698,2]
[324840189,1714369834549,-507.51907546,0.00013698,2]
[324840190,1714369834559,-1124.52,0.00013698,2]
[324840191,1714369834568,-500.0,0.00013698,2]
[324840192,1714369834577,-500.0,0.00013698,2]
[324840193,1714369834586,-2409.64,0.00013698,2]
[324840194,1714369834595,-203.43785196,0.00013698,2]
[324840254,1714369838128,-296.56214804,0.00013698,2]
[324840256,1714369838138,-504.71775616,0.00013698,2]
[324840258,1714369838146,-504.1,0.00013698,2]
[324840260,1714369838156,-500.0,0.00013698,2]
[324840263,1714369838165,-411.82679541,0.00013698,2]
[324840265,1714369838174,-500.0,0.00013698,2]
[324840266,1714369838188,-606.19161104,0.00013698,2]
[324840269,1714369838201,-796.78838896,0.00013698,2]
[324840271,1714369838210,-198.78009101,0.00013698,2]
[324840569,1714369841318,-275.76127242,0.00013698,2]
[324840571,1714369841327,-535.70777695,0.00013698,2]
[324840573,1714369841337,-500.0,0.00013698,2]
[324840575,1714369841347,-500.0,0.00013698,2]
[324840577,1714369841356,-500.0,0.00013698,2]
[324840579,1714369841365,-500.0,0.00013698,2]
[324840581,1714369841374,-500.0,0.00013698,2]
[324840583,1714369841383,-500.0,0.00013698,2]
[324840585,1714369841393,-500.0,0.00013698,2]
[324840587,1714369841402,-154.3219837,0.00013698,2]
[324840589,1714369841411,-322.0006282,0.00013698,2]
[324840591,1714369841422,-177.9993718,0.00013698,2]
[324840593,1714369841431,-500.0,0.00013698,2]
[324840595,1714369841440,-500.0,0.00013698,2]
[324840597,1714369841449,-500.0,0.00013698,2]
[324840599,1714369841459,-500.0,0.00013698,2]
[324840601,1714369841467,-500.0,0.00013698,2]
[324840603,1714369841477,-274.81360809,0.00013698,2]
[324840786,1714369843138,-407.25639191,0.00013698,2]
[324840788,1714369843147,-500.0,0.00013698,2]
[324840790,1714369843156,-500.0,0.00013698,2]
[324840792,1714369843165,-395.0307834,0.00013698,2]
[324840794,1714369843174,-500.0,0.00013698,2]
[324840796,1714369843188,-657.29,0.00013698,2]
[324840798,1714369843197,-211.60967092,0.00013698,2]
[324840800,1714369843207,-585.09,0.00013698,2]
[324840801,1714369843215,-500.0,0.00013698,2]
[324840804,1714369843225,-500.0,0.00013698,2]
[324840806,1714369843237,-500.0,0.00013698,2]
[324840808,1714369843246,-500.0,0.00013698,2]
[324840810,1714369843256,-500.0,0.00013698,2]
[324840812,1714369843267,-959.85,0.00013698,2]
[324840813,1714369843276,-500.0,0.00013698,2]
[324840815,1714369843285,-502.86286877,0.00013698,2]
[324840817,1714369843294,-1867.15063804,0.00013698,2]
[324841115,1714369846104,-931.35,0.00013698,2]
[324841117,1714369846116,-284.61,0.00013698,2]
[324841119,1714369846127,-3181.06380693,0.00013698,2]
[324841121,1714369846139,-6458.15555503,0.00013698,2]
[324841123,1714369846150,-500.0,0.00013698,2]
[324841126,1714369846159,-594.26494316,0.00013698,2]
[324841127,1714369846169,-500.0,0.00013698,2]
[324841131,1714369846178,-500.0,0.00013698,2]
[324841133,1714369846190,-500.0,0.00013698,2]
[324841134,1714369846200,-5747.4,0.00013698,2]
[324841136,1714369846209,-956.62,0.00013698,2]
[324841138,1714369846219,-500.0,0.00013698,2]
[324841140,1714369846229,-500.0,0.00013698,2]
[324841142,1714369846239,-500.0,0.00013698,2]
[324841144,1714369846249,-500.0,0.00013698,2]
[324841147,1714369846258,-500.0,0.00013698,2]
[324841149,1714369846269,-500.0,0.00013698,2]
[324841151,1714369846278,-2726.25,0.00013698,2]
[324841153,1714369846287,-500.0,0.00013698,2]
[324841155,1714369846297,-1445.37,0.00013698,2]
[324841157,1714369846306,-500.0,0.00013698,2]
[324841159,1714369846315,-943.48,0.00013698,2]
[324841161,1714369846325,-500.0,0.00013698,2]
[324841163,1714369846334,-824.53,0.00013698,2]
[324841165,1714369846343,-273.70222515,0.00013698,2]
[324841167,1714369846353,-500.0,0.00013698,2]
[324841168,1714369846362,-500.0,0.00013698,2]
[324841170,1714369846371,-5953.09,0.00013698,2]
[324841172,1714369846380,-500.0,0.00013698,2]
[324841174,1714369846390,-500.0,0.00013698,2]
[324841177,1714369846399,-500.0,0.00013698,2]
[324841179,1714369846408,-500.0,0.00013698,2]
[324841181,1714369846416,-500.0,0.00013698,2]
[324841182,1714369846426,-500.0,0.00013698,2]
[324841185,1714369846435,-761.46,0.00013698,2]
[324841187,1714369846444,-500.0,0.00013698,2]
[324841189,1714369846453,-500.0,0.00013698,2]
[324841190,1714369846462,-501.97,0.00013698,2]
[324841193,1714369846472,-3188.24,0.00013698,2]
[324841195,1714369846480,-500.0,0.00013698,2]
[324841197,1714369846490,-500.0,0.00013698,2]
[324841199,1714369846499,-500.0,0.00013698,2]
[324841201,1714369846508,-3846.14,0.00013698,2]
[324841202,1714369846516,-500.0,0.00013698,2]
[324841205,1714369846526,-500.0,0.00013698,2]
[324841207,1714369846535,-2146.92,0.00013698,2]
[324841209,1714369846544,-500.0,0.00013698,2]
[324841211,1714369846553,-985.04,0.00013698,2]
[324841213,1714369846562,-500.0,0.00013698,2]
[324841215,1714369846571,-500.0,0.00013698,2]
[324841217,1714369846579,-500.0,0.00013698,2]
[324841219,1714369846589,-500.0,0.00013698,2]
[324841221,1714369846598,-1327.53,0.00013698,2]
[324841223,1714369846606,-705.94,0.00013698,2]
[324841225,1714369846615,-500.0,0.00013698,2]
[324841241,1714369846756,-500.0,0.00013698,2]
[324841244,1714369846765,-511.38,0.00013698,2]
[324841246,1714369846774,-831.77,0.00013698,2]
[324841248,1714369846783,-624.26,0.00013698,2]
[324841250,1714369846793,-500.0,0.00013698,2]
[324841252,1714369846802,-7635.0,0.00013698,2]
[324841254,1714369846811,-2879.25,0.00013698,2]
[324841256,1714369846819,-631.01,0.00013698,2]
[324841258,1714369846828,-500.0,0.00013698,2]
[324841260,1714369846838,-500.0,0.00013698,2]
[324841262,1714369846846,-500.0,0.00013698,2]
[324841264,1714369846855,-1377.94,0.00013698,2]
[324841266,1714369846864,-638.96,0.00013698,2]
[324841267,1714369846873,-500.0,0.00013698,2]
[324841269,1714369846882,-500.0,0.00013698,2]
[324841271,1714369846891,-345.37210291,0.00013698,2]
[324841274,1714369846901,-500.0,0.00013698,2]
[324841276,1714369846910,-901.04,0.00013698,2]
[324841277,1714369846919,-1070.76,0.00013698,2]
[324841278,1714369846928,-505.14,0.00013698,2]
[324841279,1714369846936,-500.0,0.00013698,2]
[324841280,1714369846945,-500.0,0.00013698,2]
[324841281,1714369846954,-586.37,0.00013698,2]
[324841282,1714369846963,-474.99768179,0.00013698,2]
[324841283,1714369846972,-500.0,0.00013698,2]
[324841284,1714369846981,-500.0,0.00013698,2]
[324841285,1714369846991,-500.0,0.00013698,2]
[324841286,1714369847000,-1537.77,0.00013698,2]
[324841287,1714369847009,-2647.23,0.00013698,2]
[324841288,1714369847018,-1824.04,0.00013698,2]
[324841289,1714369847027,-1290.14,0.00013698,2]
[324841290,1714369847036,-735.71,0.00013698,2]
[324841291,1714369847045,-1496.26180721,0.00013698,2]
[324842447,1714369858476,247.20527995,0.00012737,2]
[324843084,1714369866135,363.86320338,0.00012737,2]
[324843142,1714369882263,154.79876161,9.999e-05,2]
[324843241,1714370843110,-300.0,0.00012696,2]
[324843242,1714370843133,-24900.0,0.00012697,2]
[324843243,1714370843153,-2361.84825206,0.000136,2]
[324843244,1714370854328,-5865.44228025,0.000136,2]
[324843245,1714370854351,-155.11657848,0.00013696,2]
[324843246,1714370854373,-155.16603618,0.00013696,2]
[324843247,1714370854395,-22171.60406091,0.00013696,2]
[324843248,1714370854416,-155.74062207,0.00013697,2]
[324843249,1714370854438,-500.0,0.00013698,2]
[324843250,1714370854464,-8396.60132499,0.00013698,2]
[324843251,1714370854485,-229.02313117,0.00013698,2]
[324843252,1714370854511,-521.1072121,0.00013698,2]
[324843253,1714370854531,-2480.59713158,0.00013698,2]
[324843254,1714370854551,-500.0,0.00013698,2]
[324843255,1714370854571,-500.0,0.00013698,2]
[324843256,1714370854590,-501.01824511,0.00013698,2]
[324843257,1714370854610,-500.0,0.00013698,2]
[324843258,1714370854629,-500.0,0.00013698,2]
[324843259,1714370854650,-500.0,0.00013698,2]
[324843260,1714370854670,-518.85,0.00013698,2]
[324843261,1714370854689,-500.0,0.00013698,2]
[324843262,1714370854709,-509.23,0.00013698,2]
[324843263,1714370854729,-311.42710708,0.00013698,2]
[324843264,1714370854749,-500.0,0.00013698,2]
[324843265,1714370854773,-500.0,0.00013698,2]
[324843266,1714370854796,-1613.51,0.00013698,2]
[324843267,1714370854816,-620.0,0.00013698,2]
[324843268,1714370854835,-500.0,0.00013698,2]
[324843269,1714370854856,-500.0,0.00013698,2]
[324843270,1714370854877,-500.0,0.00013698,2]
[324843271,1714370854896,-500.0,0.00013698,2]
[324843272,1714370854916,-500.0,0.00013698,2]
[324843273,1714370854935,-500.0,0.00013698,2]
[324843274,1714370854954,-605.85,0.00013698,2]
[324843275,1714370854973,-163.86210671,0.00013698,2]
[324843301,1714371032163,-300.0,0.00013697,2]
[324843302,1714371032173,-300.0,0.00013697,2]
[324843303,1714371032182,-336.13789329,0.00013698,2]
[324843304,1714371032191,-92.26127995,0.00013698,2]
[324843305,1714371032203,-407.73872005,0.00013698,2]
[324843306,1714371032212,-254.78386395,0.00013698,2]
[324843307,1714371032224,-299.29613605,0.00013698,2]
[324843308,1714371032233,-500.0,0.00013698,2]
[324843309,1714371032243,-455.87024668,0.00013698,2]
[324843310,1714371032255,-44.12975332,0.00013698,2]
[324843311,1714371032264,-500.0,0.00013698,2]
[324843312,1714371032273,-500.0,0.00013698,2]
[324843313,1714371032282,-692.74,0.00013698,2]
[324843314,1714371032291,-500.0,0.00013698,2]
[324843315,1714371032300,-500.0,0.00013698,2]
[324843316,1714371032310,-500.0,0.00013698,2]
[324843317,1714371032319,-500.0,0.00013698,2]
[324843318,1714371032329,-500.0,0.00013698,2]
[324843319,1714371032338,-500.0,0.00013698,2]
[324843320,1714371032347,-500.0,0.00013698,2]
[324843321,1714371032357,-1153.25,0.00013698,2]
[324843322,1714371032366,-500.0,0.00013698,2]
[324843323,1714371032376,-500.0,0.00013698,2]
[324843324,1714371032385,-500.0,0.00013698,2]
[324843325,1714371032394,-500.0,0.00013698,2]
[324843326,1714371032404,-537.4,0.00013698,2]
[324843327,1714371032413,-500.0,0.00013698,2]
[324843328,1714371032423,-500.0,0.00013698,2]
[324843329,1714371032432,-500.0,0.00013698,2]
[324843330,1714371032441,-641.48,0.00013698,2]
[324843331,1714371032450,-260.1937474,0.00013698,2]
[324843332,1714371032460,-507.15817522,0.00013698,2]
[324843333,1714371032469,-500.0,0.00013698,2]
[324843334,1714371032480,-500.0,0.00013698,2]
[324843335,1714371032489,-500.0,0.00013698,2]
[324843336,1714371032499,-615.96,0.00013698,2]
[324843337,1714371032511,-624.14,0.00013698,2]
[324843338,1714371032521,-723.74,0.00013698,2]
[324843339,1714371032530,-702.65,0.00013698,2]
[324843340,1714371032539,-500.0,0.00013698,2]
[324843341,1714371032550,-500.0,0.00013698,2]
[324843342,1714371032559,-500.0,0.00013698,2]
[324843343,1714371032568,-500.0,0.00013698,2]
[324843344,1714371032577,-556.4,0.00013698,2]
[324843345,1714371032590,-500.0,0.00013698,2]
[324843346,1714371032600,-500.0,0.00013698,2]
[324843347,1714371032609,-500.0,0.00013698,2]
[324843348,1714371032618,-500.0,0.00013698,2]
[324843349,1714371032627,-1359.12,0.00013698,2]
[324843350,1714371032637,-500.0,0.00013698,2]
[324843351,1714371032646,-500.0,0.00013698,2]
[324843352,1714371032655,-500.0,0.00013698,2]
[324843353,1714371032665,-500.0,0.00013698,2]
[324843354,1714371032674,-500.0,0.00013698,2]
[324843355,1714371032683,-500.64,0.00013698,2]
[324843356,1714371032692,-500.0,0.00013698,2]
[324843357,1714371032701,-500.0,0.00013698,2]
[324843358,1714371032710,-500.0,0.00013698,2]
[324843359,1714371032720,-500.0,0.00013698,2]
[324843360,1714371032729,-500.0,0.00013698,2]
[324843361,1714371032738,-500.0,0.00013698,2]
[324843362,1714371032748,-395.90407265,0.00013698,2]
[324843363,1714371032757,-500.0,0.00013698,2]
[324843364,1714371032767,-172.14691937,0.00013698,2]
[324843365,1714371032776,-201.07386942,0.00013698,2]
[324843366,1714371032786,-500.0,0.00013698,2]
[324843367,1714371032795,-500.0,0.00013698,2]
[324843368,1714371032805,-500.0,0.00013698,2]
[324843369,1714371032814,-500.0,0.00013698,2]
[324843370,1714371032823,-1703.04,0.00013698,2]
[324843371,1714371032832,-500.0,0.00013698,2]
[324843372,1714371032842,-557.19,0.00013698,2]
[324843373,1714371032851,-1600.0,0.00013698,2]
[324843374,1714371032859,-500.0,0.00013698,2]
[324843375,1714371032868,-500.0,0.00013698,2]
[324843376,1714371032878,-500.0,0.00013698,2]
[324843377,1714371032887,-500.0,0.00013698,2]
[324843378,1714371032896,-500.0,0.00013698,2]
[324843379,1714371032905,-881.18,0.00013698,2]
[324843380,1714371032914,-500.0,0.00013698,2]
[324843381,1714371032923,-500.0,0.00013698,2]
[324843382,1714371032932,-500.0,0.00013698,2]
[324843383,1714371032941,-985.04,0.00013698,2]
[324843384,1714371032950,-500.0,0.00013698,2]
[324843385,1714371032959,-500.0,0.00013698,2]
[324843386,1714371032968,-500.0,0.00013698,2]
[324843387,1714371032978,-500.0,0.00013698,2]
[324843388,1714371032987,-307.42551079,0.00013698,2]
[324843389,1714371032996,-500.0,0.00013698,2]
[324843390,1714371033005,-523.85162725,0.00013698,2]
[324843391,1714371033014,-826.39,0.00013698,2]
[324843392,1714371033023,-400.68158219,0.00013698,2]
[324843393,1714371033033,-919.85,0.00013698,2]
[324843394,1714371033042,-212.30907743,0.00013698,2]
[324843486,1714371038387,-829.31092257,0.00013698,2]
[324843488,1714371038396,-500.0,0.00013698,2]
[324843490,1714371038406,-500.0,0.00013698,2]
[324843492,1714371038415,-500.0,0.00013698,2]
[324843494,1714371038424,-488.85712143,0.00013698,2]
[324843496,1714371038434,-500.0,0.00013698,2]
[324843498,1714371038443,-507.8,0.00013698,2]
[324843500,1714371038453,-500.0,0.00013698,2]
[324843502,1714371038462,-276.81767614,0.00013698,2]
[324843504,1714371038471,-526.1433345,0.00013698,2]
[324843506,1714371038482,-500.0,0.00013698,2]
[324843508,1714371038491,-290.55854497,0.00013698,2]
[324843510,1714371038500,-624.26,0.00013698,2]
[324843511,1714371038512,-500.0,0.00013698,2]
[324843513,1714371038522,-606.2,0.00013698,2]
[324843515,1714371038531,-500.94,0.00013698,2]
[324843517,1714371038540,-500.0,0.00013698,2]
[324843520,1714371038550,-500.0,0.00013698,2]
[324843521,1714371038559,-500.0,0.00013698,2]
[324843524,1714371038569,-397.45926887,0.00013698,2]
[324843526,1714371038581,-102.54073113,0.00013698,2]
[324843528,1714371038590,-500.0,0.00013698,2]
[324843530,1714371038600,-500.0,0.00013698,2]
[324843532,1714371038609,-500.0,0.00013698,2]
[324843534,1714371038618,-500.0,0.00013698,2]
[324843536,1714371038628,-500.0,0.00013698,2]
[324843537,1714371038637,-500.0,0.00013698,2]
[324843539,1714371038647,-500.0,0.00013698,2]
[324843541,1714371038656,-500.0,0.00013698,2]
[324843544,1714371038666,-268.90242759,0.00013698,2]
[324843545,1714371038675,-500.0,0.00013698,2]
[324843547,1714371038684,-583.94,0.00013698,2]
[324843550,1714371038694,-506.97,0.00013698,2]
[324843552,1714371038703,-284.44684128,0.00013698,2]
[324844025,1714371043534,-445.28315872,0.00013698,2]
[324844027,1714371043544,-275.22903574,0.00013698,2]
[324844030,1714371043556,-224.77096426,0.00013698,2]
[324844032,1714371043565,-500.0,0.00013698,2]
[324844034,1714371043575,-473.26503359,0.00013698,2]
[324844480,1714371048015,-26.73496641,0.00013698,2]
[324844485,1714371048024,-308.38291685,0.00013698,2]
[324844491,1714371048037,-827.92708315,0.00013698,2]
[324844494,1714371048046,-500.0,0.00013698,2]
[324844496,1714371048055,-500.0,0.00013698,2]
[324844498,1714371048065,-556.0484439,0.00013698,2]
[324844500,1714371048076,-659.4515561,0.00013698,2]
[324844502,1714371048085,-23.79593228,0.00013698,2]
[324848824,1714371152054,1435.47653517,9.999e-05,2]
[324848825,1714372012176,-272.6816259,0.0001249,2]
[324848826,1714372148114,-300.0,0.0001249,2]
[324848827,1714372148134,-300.0,0.0001249,2]
[324848828,1714372148156,-24900.0,0.00012491,2]
[324848829,1714372151146,-7500.0,0.00012999,2]
[324848830,1714372151166,-922.61618594,0.00013,2]
[324848889,1714372233847,-620.1505081,0.00013464,2]
[324848891,1714372233860,-857.8184965,0.00013596,2]
[324848893,1714372233869,-300.0,0.00013598,2]
[324848895,1714372233879,-300.0,0.00013598,2]
[324848897,1714372233888,-44444.0,0.00013599,2]
[324848899,1714372233899,-155.07864978,0.00013696,2]
[324848901,1714372233908,-287.40550603,0.00013696,2]
[324848903,1714372233918,-155.80789349,0.00013697,2]
[324848905,1714372233927,-500.0,0.00013698,2]
[324848907,1714372233941,-500.0,0.00013698,2]
[324848909,1714372233950,-500.0,0.00013698,2]
[324848911,1714372233960,-500.0,0.00013698,2]
[324848913,1714372233969,-500.0,0.00013698,2]
[324848915,1714372233979,-500.0,0.00013698,2]
[324848917,1714372233988,-500.0,0.00013698,2]
[324848919,1714372233997,-500.0,0.00013698,2]
[324848921,1714372234006,-500.0,0.00013698,2]
[324848923,1714372234015,-580.94,0.00013698,2]
[324848925,1714372234024,-881.53,0.00013698,2]
[324848927,1714372234034,-500.0,0.00013698,2]
[324848928,1714372234042,-500.0,0.00013698,2]
[324848930,1714372234051,-500.0,0.00013698,2]
[324848932,1714372234060,-699.33,0.00013698,2]
[324848934,1714372234069,-500.0,0.00013698,2]
[324848936,1714372234079,-500.0,0.00013698,2]
[324848938,1714372234089,-500.0,0.00013698,2]
[324848940,1714372234098,-500.0,0.00013698,2]
[324848942,1714372234107,-187.38950934,0.00013698,2]
[324848944,1714372234116,-500.0,0.00013698,2]
[324848946,1714372234125,-500.0,0.00013698,2]
[324848948,1714372234134,-500.0,0.00013698,2]
[324848950,1714372234144,-500.0,0.00013698,2]
[324848952,1714372234153,-500.0,0.00013698,2]
[324848954,1714372234162,-500.0,0.00013698,2]
[324848956,1714372234171,-500.0,0.00013698,2]
[324848958,1714372234180,-500.0,0.00013698,2]
[324848960,1714372234191,-515.38,0.00013698,2]
[324848962,1714372234200,-500.0,0.00013698,2]
[324848964,1714372234209,-500.0,0.00013698,2]
[324848966,1714372234218,-466.99818241,0.00013698,2]
[324849346,1714372238523,-33.00181759,0.00013698,2]
[324849348,1714372238532,-500.0,0.00013698,2]
[324849350,1714372238542,-500.0,0.00013698,2]
[324849352,1714372238551,-500.0,0.00013698,2]
[324849354,1714372238560,-500.0,0.00013698,2]
[324849356,1714372238569,-433.09130654,0.00013698,2]
[324849358,1714372238579,-500.0,0.00013698,2]
[324849360,1714372238588,-500.0,0.00013698,2]
[324849362,1714372238597,-1081.44,0.00013698,2]
[324849364,1714372238606,-500.0,0.00013698,2]
[324849366,1714372238615,-500.0,0.00013698,2]
[324849368,1714372238625,-338.76687587,0.00013698,2]
[324849384,1714372238781,-161.23312413,0.00013698,2]
[324849387,1714372238791,-1839.34,0.00013698,2]
[324849389,1714372238800,-500.0,0.00013698,2]
[324849391,1714372238812,-592.22,0.00013698,2]
[324849393,1714372238821,-510.18,0.00013698,2]
[324849395,1714372238831,-590.97,0.00013698,2]
[324849397,1714372238840,-170.4198203,0.00013698,2]
[324849399,1714372238853,-500.0,0.00013698,2]
[324849401,1714372238862,-500.0,0.00013698,2]
[324849403,1714372238871,-151.0,0.00013698,2]
[324849405,1714372238881,-454.01018709,0.00013698,2]
[324849407,1714372238893,-45.98981291,0.00013698,2]
[324849409,1714372238902,-1303.01,0.00013698,2]
[324849411,1714372238911,-207.28824515,0.00013698,2]
[324849413,1714372238920,-500.0,0.00013698,2]
[324849415,1714372238929,-500.0,0.00013698,2]
[324849417,1714372238938,-500.0,0.00013698,2]
[324849419,1714372238950,-500.0,0.00013698,2]
[324849421,1714372238959,-500.0,0.00013698,2]
[324849423,1714372238968,-500.0,0.00013698,2]
[324849425,1714372238977,-500.0,0.00013698,2]
[324849427,1714372238986,-500.0,0.00013698,2]
[324849429,1714372238995,-500.0,0.00013698,2]
[324849431,1714372239004,-183.91194194,0.00013698,2]
[324849607,1714372240647,-256.58187936,0.00013698,2]
[324849609,1714372240656,-500.0,0.00013698,2]
[324849611,1714372240665,-43.70460344,0.00013698,2]
[324849620,1714372240743,-456.29539656,0.00013698,2]
[324849622,1714372240753,-500.0,0.00013698,2]
[324849624,1714372240762,-518.73,0.00013698,2]
[324849626,1714372240771,-201.26259049,0.00013698,2]
[324849628,1714372240780,-282.42225756,0.00013698,2]
[324849630,1714372240792,-217.57774244,0.00013698,2]
[324849632,1714372240801,-109.30225756,0.00013698,2]
[324849953,1714372243974,-359.3941898,0.00013698,2]
[324850638,1714372268458,363.86320338,0.00013,2]
[324850639,1714372271216,729.7450776,0.00013,2]
[324850640,1714372273810,769.9429365,0.00012326,2]
[324850642,1714372276850,217.97168472,0.00013011,2]
[324850643,1714372277728,521.0,0.00013,2]
[324850644,1714372305735,154.78330338,9.999e-05,2]
[324850645,1714372310224,522.04127739,9.999e-05,2]
[324850646,1714372311789,154.78330338,9.999e-05,2]
[324850647,1714372346054,409.22868854,9.999e-05,2]
[324850648,1714372346994,1286.58923299,0.0001,2]
[324850649,1714372348263,308.79421087,9.999e-05,2]